bitfinex-derivatives/quotes_BNBF0:USTF0_20250406
["timestamp","ask_amount","ask_price","bid_price","bid_amount"]
[1743899834801,0.61,593.61,592.74,0.29414232]
[1743899837704,0.61,593.61,592.73,0.29325884]
[1743899837904,0.61,593.61,592.74,0.29399806]
[1743899838499,0.61,593.61,592.73,0.29325884]
[1743899838700,0.61,593.61,592.75,0.29400634]
[1743899838898,0.61,593.61,592.76,0.29400634]
[1743899839098,0.61,593.61,592.73,0.29325019]
[1743899839298,0.61,593.61,592.74,0.29400634]
[1743899839510,0.684,593.6,592.74,0.29400634]
[1743899841109,0.684,593.6,592.73,0.29325019]
[1743899841311,0.684,593.6,592.74,0.29406819]
[1743899842111,0.684,593.6,592.75,0.29406819]
[1743899842411,0.684,593.6,592.73,0.29326007]
[1743899842613,0.684,593.6,592.74,0.29406819]
[1743899843012,0.45,593.59,592.74,0.29406819]
[1743899844911,0.45,593.59,592.66,0.29406819]
[1743899845114,0.45,593.59,592.73,0.29324772]
[1743899845314,0.45,593.59,592.74,0.29406819]
[1743899845511,0.45,593.59,592.68,0.29406819]
[1743899845811,0.45,593.59,592.69,0.29406819]
[1743899846115,0.45,593.59,592.7,0.29406819]
[1743899846316,0.45,593.59,592.68,0.29406819]
[1743899847213,0.45,593.59,592.74,1.25827326]
[1743899847517,0.45,593.59,592.75,0.29406819]
[1743899848618,0.45,593.59,592.74,1.25827326]
[1743899848814,0.45,593.59,592.76,0.29407856]
[1743899849013,0.45,593.59,592.77,0.29407856]
[1743899849216,0.45,593.59,592.79,1.25827326]
[1743899849414,0.45,593.59,592.8,0.29407856]
[1743899851319,0.45,593.59,592.79,1.25827326]
[1743899851519,0.45,593.59,592.8,0.29408098]
[1743899853019,0.45,593.59,592.78,0.29408098]
[1743899853216,0.45,593.59,592.79,0.29408098]
[1743899853420,0.45,593.59,592.78,0.29408098]
[1743899853622,0.45,593.59,592.77,1.25827326]
[1743899853823,0.45,593.59,592.78,0.29409559]
[1743899854625,0.45,593.59,592.75,0.29409559]
[1743899856327,0.45,593.59,592.74,0.2932576]
[1743899856625,0.45,593.59,592.75,0.29409391]
[1743899857026,0.45,593.59,592.76,0.29409391]
[1743899857226,0.45,593.59,592.75,0.29409391]
[1743899857427,0.45,593.59,592.76,0.29409391]
[1743899857727,0.45,593.59,592.77,0.29409391]
[1743899857925,0.45,593.59,592.75,0.29409391]
[1743899858121,0.45,593.59,592.76,0.29409391]
[1743899858326,0.45,593.59,592.75,0.29409391]
[1743899858625,0.45,593.59,592.76,0.29409391]
[1743899858825,0.45,593.59,592.75,0.29409391]
[1743899859028,0.45,593.59,592.76,0.29409391]
[1743899859223,0.45,593.59,592.75,0.29409391]
[1743899859428,0.45,593.59,592.77,0.29409391]
[1743899859626,0.45,593.59,592.78,0.29409391]
[1743899859827,0.45,593.59,592.73,1.25827326]
[1743899860029,0.45,593.59,592.76,1.25827326]
[1743899860228,0.45,593.59,592.77,0.29409384]
[1743899861331,0.45,593.59,592.76,1.55152469]
[1743899861530,0.45,593.59,592.77,0.29403178]
[1743899862533,0.45,593.59,592.81,1.25827326]
[1743899862733,0.45,593.59,592.82,0.29403178]
[1743899864836,0.45,593.59,592.81,1.25827326]
[1743899865038,0.45,593.59,592.82,0.29409104]
[1743899865336,0.45,593.59,592.86,1.25827326]
[1743899865530,0.45,593.59,592.87,0.29409104]
[1743899866437,0.45,593.59,592.86,1.25827326]
[1743899866738,0.45,593.59,592.87,0.29408351]
[1743899868238,0.45,593.59,592.88,0.29406264]
[1743899868537,0.45,593.59,592.87,0.29406264]
[1743899868733,0.45,593.59,592.86,1.25827326]
[1743899869039,0.45,593.59,592.87,0.29404281]
[1743899869938,0.45,593.59,592.88,0.29403224]
[1743899870130,0.45,593.59,592.89,0.29403224]
[1743899870335,0.45,593.59,592.86,0.29403224]
[1743899870537,0.45,593.59,592.87,0.29403224]
[1743899870738,0.45,593.59,592.86,0.29403224]
[1743899872038,0.45,593.59,592.9,1.25827326]
[1743899872234,0.684,593.6,592.91,0.29403224]
[1743899873040,0.684,593.6,592.9,1.25827326]
[1743899873235,0.684,593.6,592.92,0.2940316]
[1743899873437,0.684,593.6,592.93,0.2940316]
[1743899873638,0.684,593.6,592.91,0.2940316]
[1743899873838,0.684,593.6,592.92,0.2940316]
[1743899874039,0.684,593.6,592.91,0.2940316]
[1743899874236,0.684,593.6,592.92,0.2940316]
[1743899874436,0.684,593.6,592.91,0.2940316]
[1743899874842,0.684,593.6,592.9,1.25827326]
[1743899875044,0.684,593.6,592.91,0.29403265]
[1743899875439,0.596,593.59,592.91,0.29403265]
[1743899879845,0.596,593.59,592.92,0.2939475]
[1743899880046,0.596,593.59,592.91,0.2939475]
[1743899880246,0.596,593.59,592.92,0.2939475]
[1743899880446,0.596,593.59,592.91,0.2939475]
[1743899881247,0.596,593.59,592.91,1.55222076]
[1743899881443,0.596,593.59,592.92,0.2939475]
[1743899883148,0.596,593.59,592.91,1.25827326]
[1743899883343,0.596,593.59,592.92,0.29416679]
[1743899883849,0.596,593.59,592.93,0.29416679]
[1743899884050,0.596,593.59,592.89,0.29416679]
[1743899884243,0.596,593.59,592.88,1.25827326]
[1743899884549,0.596,593.59,592.89,0.29424889]
[1743899886150,0.596,593.59,592.84,0.29424889]
[1743899886349,0.596,593.59,592.85,0.29424889]
[1743899886544,0.596,593.59,592.84,0.29424889]
[1743899886744,0.596,593.59,592.85,0.29424889]
[1743899886946,0.596,593.59,592.86,0.29424889]
[1743899887145,0.596,593.59,592.84,0.29424889]
[1743899887349,0.596,593.59,592.85,0.29424889]
[1743899887549,0.596,593.59,592.83,1.25827326]
[1743899887845,0.596,593.59,592.84,0.29425629]
[1743899888051,0.596,593.59,592.85,1.25827326]
[1743899888452,0.596,593.59,592.86,0.29424585]
[1743899889547,0.684,593.6,592.86,0.29424585]
[1743899890955,0.684,593.6,592.86,1.55251911]
[1743899891152,0.684,593.6,592.87,0.29424585]
[1743899892455,0.684,593.6,592.86,1.25827326]
[1743899892655,0.684,593.6,592.87,0.2943308]
[1743899892855,0.54,593.59,592.87,0.2943308]
[1743899893755,0.54,593.59,592.86,0.2943308]
[1743899895966,0.54,593.59,592.91,1.25827326]
[1743899896162,0.54,593.59,592.92,0.2943308]
[1743899896864,0.726,593.58,592.92,0.2943308]
[1743899897462,0.726,593.58,592.91,1.25827326]
[1743899897662,0.726,593.58,592.92,0.29434503]
[1743899898165,0.726,593.58,592.9,0.29434503]
[1743899899862,0.726,593.58,592.87,0.29434503]
[1743899900867,0.726,593.58,592.86,1.25827326]
[1743899901069,0.726,593.58,592.87,0.29421257]
[1743899901766,0.726,593.58,592.83,0.29421257]
[1743899901966,0.726,593.58,592.84,0.29421257]
[1743899902166,0.726,593.58,592.8,0.29421257]
[1743899902369,0.726,593.58,592.82,0.29324031]
[1743899902562,0.726,593.58,592.83,0.29420342]
[1743899903170,0.726,593.58,592.82,0.29324031]
[1743899903372,0.726,593.58,592.83,0.29421025]
[1743899905066,0.726,593.58,592.79,0.29421025]
[1743899905265,0.726,593.58,592.82,0.2932366]
[1743899905571,0.726,593.58,592.83,0.29421025]
[1743899905870,0.726,593.58,592.82,0.2932366]
[1743899906072,0.726,593.58,592.83,0.29416525]
[1743899908072,0.726,593.58,592.76,0.29416525]
[1743899908273,0.726,593.58,592.79,0.29324648]
[1743899908469,0.726,593.58,592.8,0.29416525]
[1743899911076,0.726,593.58,592.75,0.29416525]
[1743899911376,0.726,593.58,592.79,0.29325019]
[1743899911676,0.726,593.58,592.8,0.29416525]
[1743899912176,1.349,593.58,592.8,0.29416525]
[1743899912575,1.349,593.58,592.79,0.29325019]
[1743899912777,1.349,593.58,592.8,0.29427212]
[1743899913972,1.349,593.58,592.79,0.29427212]
[1743899914175,1.349,593.58,592.79,0.58752231]
[1743899914377,1.349,593.58,592.79,0.29325019]
[1743899914579,1.349,593.58,592.8,0.29426519]
[1743899914973,1.349,593.58,592.81,1.25827326]
[1743899915175,1.349,593.58,592.82,0.29426519]
[1743899919978,1.349,593.58,592.8,0.29426519]
[1743899920179,1.349,593.58,592.81,0.29426519]
[1743899920379,1.349,593.58,592.82,0.29426519]
[1743899920679,1.349,593.58,592.8,0.29426519]
[1743899920886,1.349,593.58,592.81,0.29426519]
[1743899921284,1.349,593.58,592.82,0.29426519]
[1743899921587,1.349,593.58,592.83,0.29426519]
[1743899921784,1.349,593.58,592.8,0.29426519]
[1743899921984,1.349,593.58,592.81,0.29426519]
[1743899922184,1.349,593.58,592.8,0.29426519]
[1743899922378,1.349,593.58,592.81,0.29426519]
[1743899922581,1.349,593.58,592.79,0.29325019]
[1743899922782,1.349,593.58,592.8,0.29427589]
[1743899923285,1.349,593.58,592.79,0.29325019]
[1743899923486,1.349,593.58,592.8,0.29427589]
[1743899925983,1.349,593.58,592.7,0.29427589]
[1743899926186,1.349,593.58,592.79,0.29325019]
[1743899926384,1.349,593.58,592.8,0.29427589]
[1743899926589,1.349,593.58,592.7,0.29427589]
[1743899927487,1.349,593.58,592.72,1.25827326]
[1743899927891,1.349,593.58,592.73,0.29427095]
[1743899928190,1.349,593.58,592.73,0.58752979]
[1743899928391,1.349,593.58,592.74,0.29427095]
[1743899930493,1.349,593.58,592.83,1.25827326]
[1743899930688,1.349,593.58,592.84,0.29427095]
[1743899931187,1.349,593.58,592.83,1.25827326]
[1743899931391,1.349,593.58,592.84,0.29435885]
[1743899932788,1.349,593.58,592.83,1.25827326]
[1743899932989,1.349,593.58,592.84,0.29435873]
[1743899933491,1.349,593.58,592.83,1.25827326]
[1743899933691,1.349,593.58,592.84,0.29435841]
[1743899934597,1.349,593.58,592.83,1.25827326]
[1743899934794,1.349,593.58,592.84,0.29435705]
[1743899937194,1.349,593.58,592.81,0.29435705]
[1743899938505,1.349,593.58,592.8,1.25827326]
[1743899938705,1.349,593.58,592.81,0.29435487]
[1743899939607,1.349,593.58,592.8,1.25827326]
[1743899939808,1.349,593.58,592.81,0.29435527]
[1743899941204,1.349,593.58,592.82,1.25827326]
[1743899941408,1.349,593.58,592.83,0.29435527]
[1743899942410,1.349,593.58,592.82,1.25827326]
[1743899942609,1.349,593.58,592.83,0.29435511]
[1743899943108,1.349,593.58,592.82,1.25827326]
[1743899943309,1.349,593.58,592.83,0.29435553]
[1743899943507,1.349,593.58,592.86,1.25827326]
[1743899943704,1.349,593.58,592.87,0.29435553]
[1743899944309,1.349,593.58,592.86,1.25827326]
[1743899944516,1.349,593.58,592.87,0.29435494]
[1743899944811,1.349,593.58,592.88,0.2943552]
[1743899945013,1.349,593.58,592.87,0.2943552]
[1743899945912,1.349,593.58,592.84,0.2943552]
[1743899947512,1.349,593.58,592.83,1.25827326]
[1743899947707,1.349,593.58,592.84,0.29435818]
[1743899948414,1.349,593.58,592.74,0.29435818]
[1743899949408,1.349,593.58,592.73,1.55154322]
[1743899949611,1.349,593.58,592.74,0.29436361]
[1743899952614,1.349,593.58,592.73,0.29326996]
[1743899952815,1.349,593.58,592.74,0.29435903]
[1743899953015,1.349,593.58,592.69,0.29435903]
[1743899953215,1.349,593.58,592.73,0.29327614]
[1743899953416,1.349,593.58,592.74,0.29435904]
[1743899956019,1.349,593.58,592.7,0.29435904]
[1743899956219,1.349,593.58,592.73,0.2932749]
[1743899956421,1.349,593.58,592.74,0.29435904]
[1743899958722,1.349,593.58,592.79,1.25827326]
[1743899958918,1.349,593.58,592.8,0.29435904]
[1743899961025,1.349,593.58,592.82,1.25827326]
[1743899961224,1.349,593.58,592.83,0.2943594]
[1743899962727,1.349,593.58,592.82,1.25827326]
[1743899962921,1.349,593.58,592.87,1.25827326]
[1743899963122,1.349,593.58,592.88,0.29436066]
[1743899965824,1.349,593.58,592.85,0.29436066]
[1743899966022,1.349,593.58,592.86,0.29436066]
[1743899966222,1.349,593.58,592.85,0.29436066]
[1743899967829,1.349,593.58,592.84,1.25827326]
[1743899968031,1.349,593.58,592.85,0.29436978]
[1743899970832,1.349,593.58,592.86,0.29436978]
[1743899971027,1.349,593.58,592.84,0.29436978]
[1743899971231,1.349,593.58,592.83,1.25827326]
[1743899971431,1.349,593.58,592.84,0.29437354]
[1743899973934,1.349,593.58,592.83,0.29437354]
[1743899975736,1.349,593.58,592.84,1.25827326]
[1743899976035,1.349,593.58,592.85,0.29437354]
[1743899978133,1.349,593.58,592.83,0.29437354]
[1743899979837,1.349,593.58,592.83,1.25827326]
[1743899980138,1.349,593.58,592.84,0.29436343]
[1743899984839,1.349,593.58,592.83,1.25827326]
[1743899985135,1.349,593.58,592.84,0.29437388]
[1743899987444,1.349,593.58,592.84,1.55264714]
[1743899987643,1.349,593.58,592.85,0.29437388]
[1743899988044,1.349,593.58,592.84,1.25827326]
[1743899988248,1.349,593.58,592.85,0.29437181]
[1743899988745,1.349,593.58,592.84,1.25827326]
[1743899988944,1.349,593.58,592.85,0.29436885]
[1743899990147,1.349,593.58,592.82,0.29436885]
[1743899990344,1.349,593.58,592.83,0.29436885]
[1743899990544,1.349,593.58,592.82,0.29436885]
[1743899990741,1.349,593.58,592.83,0.29436885]
[1743899991044,1.349,593.58,592.84,0.29436885]
[1743899991247,1.349,593.58,592.82,0.29436885]
[1743899993149,1.349,593.58,592.81,1.25827326]
[1743899993350,1.349,593.58,592.82,0.29437417]
[1743899994147,1.349,593.58,592.8,0.29437417]
[1743899996152,1.349,593.58,592.82,1.25827326]
[1743899996451,1.349,593.58,592.83,0.29437417]
[1743899996651,1.349,593.58,592.82,1.25827326]
[1743899996851,1.349,593.58,592.83,0.29436263]
[1743899997350,1.349,593.58,592.82,1.25827326]
[1743899997550,1.349,593.58,592.83,0.29436173]
[1743899998251,1.349,593.58,592.83,1.55263499]
[1743899998443,1.349,593.58,592.84,0.29436173]
[1743900000250,1.349,593.58,592.85,0.29436173]
[1743900000451,1.349,593.58,592.78,0.29436173]
[1743900002646,1.349,593.58,592.78,1.55263499]
[1743900002951,1.349,593.58,592.79,0.29436173]
[1743900004953,1.349,593.58,592.8,0.29435638]
[1743900007355,1.349,593.58,592.82,1.25827326]
[1743900007555,1.349,593.58,592.83,0.29435638]
[1743900009357,1.349,593.58,592.86,1.25827326]
[1743900009658,1.349,593.58,592.87,0.29435638]
[1743900012263,1.349,593.58,592.86,0.29435638]
[1743900012563,1.349,593.58,592.87,0.29435638]
[1743900012763,1.349,593.58,592.86,0.29435638]
[1743900012959,1.349,593.58,592.85,1.25827326]
[1743900012960,1.349,593.58,592.88,0.29435638]
[1743900013165,1.349,593.58,592.89,0.2943699]
[1743900013364,1.349,593.58,592.86,0.2943699]
[1743900013567,1.349,593.58,592.87,0.2943699]
[1743900013864,1.349,593.58,592.88,0.2943699]
[1743900014060,1.349,593.58,592.89,0.2943699]
[1743900014264,1.349,593.58,592.86,0.2943699]
[1743900015860,1.349,593.58,592.78,0.2943699]
[1743900017966,1.349,593.58,592.77,1.25827326]
[1743900018170,1.349,593.58,592.78,0.29435343]
[1743900018471,1.349,593.58,592.78,1.55262669]
[1743900018770,1.349,593.58,592.79,0.29435343]
[1743900021376,1.349,593.58,592.78,1.25827326]
[1743900021579,1.349,593.58,592.79,0.29435539]
[1743900022975,1.349,593.58,592.78,1.25827326]
[1743900023174,1.349,593.58,592.79,0.29435542]
[1743900026073,1.349,593.58,592.78,0.29435542]
[1743900026280,1.349,593.58,592.79,0.29435542]
[1743900026574,1.349,593.58,592.8,0.29435542]
[1743900026780,1.349,593.58,592.78,0.29435542]
[1743900027679,1.349,593.58,592.77,0.29435542]
[1743900027978,1.349,593.58,592.76,1.25827326]
[1743900028179,1.349,593.58,592.77,0.29432201]
[1743900028678,1.349,593.58,592.76,1.25827326]
[1743900028876,1.349,593.58,592.77,0.2943223]
[1743900029880,1.349,593.58,592.78,0.2943223]
[1743900030082,1.349,593.58,592.77,0.2943223]
[1743900030279,1.349,593.58,592.78,0.2943223]
[1743900030478,1.349,593.58,592.75,0.2943223]
[1743900031376,1.349,593.58,592.74,1.55152716]
[1743900031580,1.349,593.58,592.75,0.29432188]
[1743900032881,1.349,593.58,592.74,0.2932539]
[1743900033081,1.349,593.58,592.75,0.29432188]
[1743900034083,1.349,593.58,592.71,0.29432188]
[1743900034278,1.349,593.58,592.72,0.29432188]
[1743900034478,1.349,593.58,592.74,0.29325884]
[1743900034778,1.349,593.58,592.75,0.29432188]
[1743900036286,1.349,593.58,592.81,1.25827326]
[1743900036487,1.349,593.58,592.82,0.29432188]
[1743900038386,1.349,593.58,592.81,0.29432188]
[1743900038584,1.349,593.58,592.83,0.29432188]
[1743900038781,1.349,593.58,592.84,0.29432188]
[1743900039085,1.349,593.58,592.85,0.29432188]
[1743900039287,1.349,593.58,592.81,0.29432188]
[1743900039688,1.349,593.58,592.8,1.25827326]
[1743900039986,1.349,593.58,592.81,0.29432217]
[1743900040686,1.349,593.58,592.8,0.29432217]
[1743900040887,1.349,593.58,592.81,0.29432217]
[1743900041181,1.349,593.58,592.8,0.29432217]
[1743900041386,1.349,593.58,592.81,0.29432217]
[1743900041683,1.349,593.58,592.82,0.29432217]
[1743900041882,1.349,593.58,592.8,0.29432217]
[1743900042082,1.349,593.58,592.81,0.29432217]
[1743900042282,1.349,593.58,592.8,0.29432217]
[1743900042686,1.349,593.58,592.85,1.25827326]
[1743900043191,1.349,593.58,592.86,0.29432243]
[1743900045789,1.349,593.58,592.87,0.29432243]
[1743900045994,1.349,593.58,592.83,0.29432243]
[1743900047292,1.349,593.58,592.83,1.55259569]
[1743900047495,1.349,593.58,592.84,0.29432243]
[1743900047897,1.349,593.58,592.83,1.25827326]
[1743900048094,1.349,593.58,592.85,0.29432215]
[1743900048292,1.349,593.58,592.86,0.29432215]
[1743900048495,1.349,593.58,592.84,0.29432215]
[1743900048693,1.349,593.58,592.85,0.29432215]
[1743900048897,1.349,593.58,592.84,0.29432215]
[1743900049098,1.349,593.58,592.85,0.29432215]
[1743900049299,1.349,593.58,592.86,0.29432215]
[1743900049498,1.349,593.58,592.84,0.29432215]
[1743900049699,1.349,593.58,592.83,1.25827326]
[1743900049700,1.349,593.58,592.85,0.29432215]
[1743900050000,1.349,593.58,592.86,0.29432215]
[1743900050198,1.349,593.58,592.85,0.29432215]
[1743900050399,1.349,593.58,592.87,0.29432215]
[1743900050600,1.349,593.58,592.88,0.29432215]
[1743900050799,1.349,593.58,592.85,0.29432215]
[1743900052606,1.349,593.58,592.85,1.55259541]
[1743900052806,1.349,593.58,592.86,0.29432215]
[1743900054305,1.349,593.58,592.9,1.25827326]
[1743900054508,1.349,593.58,592.91,0.29432215]
[1743900054709,1.349,593.58,592.9,1.25827326]
[1743900054905,1.349,593.58,592.91,0.29432229]
[1743900056309,1.349,593.58,592.9,1.25827326]
[1743900056509,1.349,593.58,592.91,1.55259555]
[1743900056712,1.349,593.58,592.92,0.29432229]
[1743900058914,1.349,593.58,592.91,0.29432229]
[1743900059813,1.349,593.58,592.92,0.29432213]
[1743900060117,1.349,593.58,592.91,0.29432213]
[1743900060416,1.349,593.58,592.92,0.29432213]
[1743900060613,1.349,593.58,592.91,0.29432213]
[1743900060813,1.349,593.58,592.92,0.29432213]
[1743900061015,1.349,593.58,592.91,0.29432213]
[1743900061216,1.349,593.58,592.94,1.25827326]
[1743900061417,1.349,593.58,592.95,0.29432213]
[1743900063920,1.349,593.58,592.95,1.55259539]
[1743900064121,1.349,593.58,592.96,0.29432213]
[1743900064322,1.349,593.58,592.97,0.29432228]
[1743900064517,1.349,593.58,592.96,0.29432228]
[1743900064720,1.349,593.58,592.97,0.29432228]
[1743900064917,1.349,593.58,592.96,0.29432228]
[1743900065117,1.349,593.58,592.97,0.29432228]
[1743900065321,1.349,593.58,592.96,0.29432228]
[1743900065522,1.349,593.58,592.97,0.29432228]
[1743900065717,1.349,593.58,592.96,0.29432228]
[1743900065922,1.349,593.58,592.95,1.25827326]
[1743900066124,1.349,593.58,592.97,0.29432228]
[1743900066426,1.349,593.58,592.98,0.29432228]
[1743900066624,1.349,593.58,592.94,0.29432228]
[1743900066822,1.349,593.58,592.93,1.25827326]
[1743900066823,1.349,593.58,592.95,0.29432228]
[1743900067027,1.349,593.58,592.93,1.25827326]
[1743900067028,1.349,593.58,592.94,0.29432228]
[1743900068230,1.349,593.58,592.93,1.25827326]
[1743900068430,1.349,593.58,592.94,0.29432249]
[1743900069331,1.349,593.58,592.93,1.25827326]
[1743900069529,1.349,593.58,592.94,0.29432225]
[1743900070631,1.349,593.58,592.96,1.25827326]
[1743900070828,1.349,593.58,592.97,0.29432225]
[1743900073233,1.349,593.58,592.96,1.25827326]
[1743900073433,1.349,593.58,592.97,0.29433044]
[1743900074434,1.349,593.58,592.96,1.25827326]
[1743900074636,1.349,593.58,592.97,0.29433068]
[1743900075031,1.349,593.58,592.93,0.29433068]
[1743900076934,1.349,593.58,592.92,0.29433068]
[1743900078436,1.349,593.58,592.91,1.25827326]
[1743900078635,1.349,593.58,592.92,0.29433068]
[1743900079630,1.349,593.58,592.91,1.25827326]
[1743900079831,1.349,593.58,592.92,0.29432196]
[1743900081335,1.349,593.58,592.91,1.25827326]
[1743900081530,1.349,593.58,592.92,0.29432257]
[1743900081934,1.349,593.58,592.95,1.25827326]
[1743900082130,1.349,593.58,592.96,0.29432257]
[1743900084435,1.349,593.58,592.97,0.29432257]
[1743900084636,1.349,593.58,592.95,0.29432257]
[1743900086837,1.349,593.58,592.86,0.29432257]
[1743900090037,1.349,593.58,592.85,1.25827326]
[1743900090237,1.349,593.58,592.86,0.2943249]
[1743900090832,1.349,593.58,592.83,0.2943249]
[1743900091437,1.349,593.58,592.84,0.2943249]
[1743900091637,1.349,593.58,592.8,0.2943249]
[1743900091837,1.349,593.58,592.81,0.2943249]
[1743900092038,1.349,593.58,592.8,0.2943249]
[1743900093141,1.349,593.58,592.8,1.55259816]
[1743900093334,1.349,593.58,592.81,0.2943249]
[1743900094143,1.349,593.58,592.8,1.25827326]
[1743900094343,1.349,593.58,592.82,0.29432507]
[1743900094542,1.349,593.58,592.81,0.29432507]
[1743900094742,1.349,593.58,592.85,1.25827326]
[1743900094942,1.349,593.58,592.86,0.29432507]
[1743900096942,1.349,593.58,592.85,1.25827326]
[1743900097144,1.349,593.58,592.86,0.29432234]
[1743900097645,1.349,593.58,592.88,1.25827326]
[1743900097844,1.349,593.58,592.89,0.29432234]
[1743900099346,1.349,593.58,592.88,1.25827326]
[1743900099546,1.349,593.58,592.89,0.29432503]
[1743900100445,1.349,593.58,592.87,0.29432503]
[1743900100645,1.349,593.58,592.88,0.29432503]
[1743900100842,1.349,593.58,592.87,0.29432503]
[1743900101946,1.349,593.58,592.96,1.25827326]
[1743900102137,1.349,593.58,592.97,0.29432503]
[1743900103542,1.349,593.58,592.96,1.25827326]
[1743900104646,1.349,593.58,592.94,1.25827326]
[1743900106449,1.349,593.58,592.82,0.29322919]
[1743900106649,1.349,593.58,592.83,0.29433884]
[1743900107350,1.349,593.58,592.82,0.29322919]
[1743900107547,1.349,593.58,592.83,0.29433782]
[1743900109350,1.349,593.58,592.82,0.29324401]
[1743900109551,1.349,593.58,592.83,0.29433782]
[1743900112052,1.349,593.58,592.68,0.29433782]
[1743900112352,1.349,593.58,592.82,0.29326255]
[1743900112552,1.349,593.58,592.83,0.29433782]
[1743900112952,1.349,593.58,592.68,0.29433782]
[1743900113153,1.349,593.58,592.69,0.29433782]
[1743900113354,1.349,593.58,592.68,0.29433782]
[1743900113654,1.349,593.58,592.69,0.29433782]
[1743900113848,1.349,593.58,592.68,0.29433782]
[1743900114049,1.349,593.58,592.67,0.33745591]
[1743900114353,1.349,593.58,592.69,0.29326255]
[1743900114553,1.349,593.58,592.7,0.29432477]
[1743900115249,1.349,593.58,592.71,0.29432477]
[1743900115451,1.349,593.58,592.69,0.29326007]
[1743900115452,1.349,593.58,592.7,0.29432477]
[1743900115650,1.349,593.58,592.76,1.25827326]
[1743900115851,1.349,593.58,592.77,0.29432477]
[1743900118757,1.349,593.58,592.76,0.29432477]
[1743900119053,1.349,593.58,592.75,1.25827326]
[1743900119359,1.349,593.58,592.76,0.29432785]
[1743900121254,1.349,593.58,592.76,1.55260111]
[1743900121457,1.349,593.58,592.77,0.29432785]
[1743900123461,1.349,593.58,592.8,1.25827326]
[1743900123654,1.349,593.58,592.81,0.29432785]
[1743900123856,1.349,593.58,592.82,0.29432721]
[1743900124162,1.349,593.58,592.83,0.29432721]
[1743900124661,1.349,593.58,592.84,0.29432721]
[1743900124856,1.349,593.58,592.81,0.29432721]
[1743900125161,1.349,593.58,592.76,0.29325637]
[1743900125356,1.349,593.58,592.77,0.2943334]
[1743900127063,1.349,593.58,592.76,0.2943334]
[1743900127263,1.349,593.58,592.77,0.2943334]
[1743900132469,1.349,593.58,592.78,0.29429949]
[1743900132670,1.349,593.58,592.77,0.29429949]
[1743900133270,1.349,593.58,592.76,0.29325884]
[1743900133466,1.349,593.58,592.77,0.29429949]
[1743900133971,1.349,593.58,592.76,0.29325884]
[1743900134172,1.349,593.58,592.78,0.29424742]
[1743900134372,1.349,593.58,592.79,0.29424742]
[1743900134571,1.349,593.58,592.77,0.29424742]
[1743900136175,1.349,593.58,592.74,0.29424742]
[1743900136370,1.349,593.58,592.75,0.29424742]
[1743900136674,1.349,593.58,592.77,1.25827326]
[1743900136870,1.349,593.58,592.78,0.29424742]
[1743900138877,1.349,593.58,592.76,0.29424742]
[1743900139074,1.349,593.58,592.77,0.29424742]
[1743900139371,1.349,593.58,592.77,0.29326007]
[1743900139578,1.349,593.58,592.78,0.29424742]
[1743900140680,1.349,593.58,592.91,1.25827326]
[1743900140882,1.349,593.58,592.92,0.29424742]
[1743900143980,1.349,593.58,592.91,1.25827326]
[1743900144184,1.349,593.58,592.92,0.29422302]
[1743900144984,1.349,593.58,592.93,0.2941929]
[1743900145285,1.349,593.58,592.92,0.2941929]
[1743900145781,1.349,593.58,592.91,0.2941929]
[1743900146987,1.349,593.58,592.92,1.25827326]